bitfinex/quotes_ETHUSD_20211001
["timestamp","ask_amount","ask_price","bid_price","bid_amount"]
[1633067190950,0.003,3016.5,3016.4,12.09067688]
[1633067191351,0.003,3016.5,3016.4,4.09067688]
[1633067191550,0.003,3016.5,3016.4,10.43120732]
[1633067193152,0.003,3016.5,3016.4,3.80127732]
[1633067194149,0.003,3016.5,3016.4,2.79667688]
[1633067195149,0.003,3016.5,3016.4,2.80309043]
[1633067195352,0.003,3016.5,3016.4,1.80309043]
[1633067195552,0.003,3016.5,3016.4,2.80309043]
[1633067195755,0.003,3016.5,3016.4,1.80309043]
[1633067195953,0.003,3016.5,3016.4,2.80309043]
[1633067196155,0.003,3016.5,3016.4,1.80309043]
[1633067196355,0.003,3016.5,3016.4,2.80309043]
[1633067197752,0.003,3016.5,3016.4,2.78309043]
[1633067199957,0.003,3016.5,3016.4,3.33903327]
[1633067200160,0.003,3016.5,3016.4,2.78309043]
[1633067204763,0.003,3016.5,3015.8,0.2]
[1633067204764,1.302149,3016.5,3015.8,0.2]
[1633067204960,1.302149,3016.5,3015.9,1.60538596]
[1633067204961,3.324739,3016.5,3015.9,1.60538596]
[1633067205164,3.31668,3016.4,3015.9,1.60538596]
[1633067205561,4.17723208,3016.4,3015.9,1.60538596]
[1633067206560,4.97488,3016.2,3015.9,1.60538596]
[1633067208062,4.97488,3016.2,3016.1,0.91066598]
[1633067208261,10.81040208,3016.4,3016.1,1.60589886]
[1633067208460,0.02,3016.3,3015.8,0.2]
[1633067208660,0.02,3016.3,3015.9,1.60603032]
[1633067209662,4.99453,3016.3,3015.9,2.8170714]
[1633067209861,4.99453,3016.3,3016.0,1.60600385]
[1633067210262,4.99453,3016.3,3016.0,2.60600385]
[1633067210462,4.99453,3016.3,3016.1,1.60607872]
[1633067210663,4.99453,3016.3,3015.9,1.21104108]
[1633067210862,4.99453,3016.3,3016.0,1.60585915]
[1633067211666,0.003,3016.5,3016.4,10.58953458]
[1633067211864,0.003,3016.5,3016.4,6.38457129]
[1633067212066,0.003,3016.5,3016.4,14.93958716]
[1633067212266,0.003,3016.5,3016.4,20.35662129]
[1633067212465,0.003,3016.5,3016.4,24.95111215]
[1633067212666,0.003,3016.5,3016.4,25.68924174]
[1633067212868,0.003,3016.5,3016.4,25.39363568]
[1633067213071,0.003,3016.5,3016.4,25.6890663]
[1633067213268,0.003,3016.5,3016.4,26.32864213]
[1633067213669,0.003,3016.5,3016.4,25.6890663]
[1633067213868,0.003,3016.5,3016.4,23.79140219]
[1633067214069,0.003,3016.5,3016.4,7.44458695]
[1633067214271,0.003,3016.5,3016.4,5.30380605]
[1633067214869,0.003,3016.5,3016.4,3.70152789]
[1633067215269,0.003,3016.5,3016.4,5.30516574]
[1633067215469,0.003,3016.5,3016.4,6.30509715]
[1633067216269,4.29742252,3016.4,3015.9,0.56382923]
[1633067216469,0.004278,3016.0,3015.7,0.55633917]
[1633067216668,0.004278,3016.0,3015.5,2.1479093]
[1633067217071,0.004278,3016.0,3015.6,0.94966218]
[1633067217273,0.66009751,3015.8,3015.6,0.94966218]
[1633067217471,4.97602,3015.7,3015.6,0.94966218]
[1633067218272,3.3173,3016.1,3015.6,0.94966218]
[1633067218473,1.00366764,3016.4,3016.3,1.07451438]
[1633067218671,1.00366764,3016.4,3015.7,2.45654878]
[1633067218871,1.00366764,3016.4,3015.5,3.1794902]
[1633067219073,1.00366764,3016.4,3015.6,1.0]
[1633067219271,0.92670258,3016.3,3015.6,1.93636167]
[1633067219874,4.9749,3016.2,3015.9,1.11129915]
[1633067220272,4.9749,3016.2,3015.9,3.49129915]
[1633067222673,4.9749,3016.2,3015.9,2.48]
[1633067223875,0.004108,3016.0,3015.9,2.48]
[1633067224274,0.004108,3016.0,3015.5,0.203]
[1633067224674,0.004108,3016.0,3015.6,0.91363287]
[1633067225077,4.979798,3016.0,3015.5,0.203]
[1633067225677,5.89036917,3016.0,3015.5,0.203]
[1633067227877,9.20765917,3016.0,3015.5,0.203]
[1633067228280,4.23196917,3016.0,3015.5,0.203]
[1633067228477,0.91467917,3016.0,3015.5,0.203]
[1633067229079,1.00366764,3016.4,3015.5,0.203]
[1633067229679,1.00366764,3016.4,3015.5,0.76050279]
[1633067229878,1.00366764,3016.4,3015.5,0.76047834]
[1633067229879,5.97853764,3016.4,3015.5,0.76047834]
[1633067230077,1.0076172,3016.2,3015.5,1.203]
[1633067230678,1.0076172,3016.2,3015.6,1.04492985]
[1633067230878,1.0076172,3016.2,3015.5,1.203]
[1633067231079,4.9754,3016.0,3015.5,1.203]
[1633067231279,4.9754,3016.0,3015.5,0.203]
[1633067231482,4.9754,3016.0,3015.6,1.59018695]
[1633067232478,4.97528,3016.1,3015.6,1.59018695]
[1633067237545,6.78844446,3016.1,3015.6,1.59018695]
[1633067237746,0.00404,3015.7,3015.5,0.003]
[1633067237946,0.22849791,3015.7,3015.5,0.003]
[1633067238154,1.45423847,3015.6,3015.0,39.965]
[1633067238355,0.004479,3015.1,3015.0,38.4421343]
[1633067238549,4.983029,3015.1,3015.0,38.4421343]
[1633067238846,5.17855,3015.1,3015.0,38.4421343]
[1633067239048,0.66717728,3015.6,3015.0,38.4504243]
[1633067239245,0.66717728,3015.6,3015.0,38.4421343]
[1633067239947,5.64360728,3015.6,3015.0,38.4421343]
[1633067240350,1.294,3015.3,3015.0,38.4421343]
[1633067240552,0.84806793,3015.1,3015.0,38.4421343]
[1633067240949,6.83629,3015.6,3015.0,38.4421343]
[1633067241149,4.97779,3015.2,3015.0,38.4421343]
[1633067241551,0.2,3015.6,3015.0,38.4421343]
[1633067241950,0.88661433,3015.5,3015.0,38.4421343]
[1633067242151,4.97719,3015.3,3015.0,38.4421343]
[1633067243152,1.294,3015.2,3015.0,38.4421343]
[1633067243355,4.97719,3015.3,3015.0,38.4421343]
[1633067243754,0.88661433,3015.5,3015.0,38.4421343]
[1633067245358,4.97654,3015.5,3015.0,38.4421343]
[1633067246960,3.31838,3015.4,3015.0,38.4421343]
[1633067247760,4.97731,3015.2,3015.0,38.4421343]
[1633067248163,6.63642,3015.3,3015.0,38.4421343]
[1633067248361,0.94668607,3015.6,3015.0,38.4421343]
[1633067248564,1.94668607,3015.6,3015.0,38.4421343]
[1633067249363,6.63648,3015.3,3015.0,38.4421343]
[1633067251766,3.31827,3015.4,3015.0,38.4421343]
[1633067251966,4.51824,3015.6,3015.0,38.4421343]
[1633067252765,5.62437583,3015.6,3015.0,38.4421343]
[1633067252967,5.24122763,3015.6,3015.0,38.4421343]
[1633067253172,4.97678,3015.3,3015.0,38.4421343]
[1633067254369,4.97678,3015.3,3015.0,39.62288894]
[1633067254568,4.97678,3015.3,3015.0,38.4421343]
[1633067255571,9.95283,3015.8,3015.2,0.99351502]
[1633067255969,6.63513,3015.8,3015.2,0.99351502]
[1633067256372,6.63513,3015.8,3015.1,0.2]
[1633067256569,0.94715116,3015.6,3015.1,0.2]
[1633067256769,5.92338116,3015.6,3015.1,0.2]
[1633067257372,5.92338116,3015.6,3015.1,1.40586874]
[1633067257570,5.92338116,3015.6,3015.1,0.2]
[1633067259175,4.97623,3015.6,3015.1,0.2]
[1633067265779,8.29409,3015.6,3015.1,0.2]
[1633067265977,3.31786,3015.6,3015.1,0.2]
[1633067266178,4.17991764,3015.8,3015.1,0.2]
[1633067267178,4.97605,3015.5,3015.4,1.11654094]
[1633067267579,4.97605,3015.5,3015.3,0.88441639]
[1633067269780,0.81264065,3015.9,3015.3,0.88441639]
[1633067269980,4.97614,3015.6,3015.3,0.88441639]
[1633067270282,0.003,3016.0,3015.3,0.88441639]
[1633067270482,0.003,3016.0,3015.6,1.294]
[1633067270682,0.003,3016.0,3015.8,0.012207]
[1633067271282,0.003,3016.0,3015.8,0.98164993]
[1633067272281,0.003,3016.0,3015.9,0.2]
[1633067272683,0.003,3016.0,3015.7,1.0]
[1633067272884,0.003,3016.0,3015.2,11.89048445]
[1633067272885,0.003,3016.0,3015.6,0.2]
[1633067275887,4.97549,3015.9,3015.6,0.2]
[1633067276685,4.97549,3015.9,3015.6,1.39130923]
[1633067278492,4.97549,3015.9,3015.6,0.2]
[1633067279491,4.97549,3015.9,3015.6,1.18783142]
[1633067279891,4.97549,3015.9,3015.6,0.2]
[1633067281093,4.97549,3015.9,3015.6,1.09532246]
[1633067281294,4.97549,3015.9,3015.6,0.2]
[1633067285158,3.31751,3015.8,3015.1,12.0965]
[1633067285356,5.58804578,3015.8,3015.1,12.0965]
[1633067285557,3.31751,3015.8,3015.1,0.2]
[1633067285757,3.26751,3015.8,3015.2,1.06742732]
[1633067286159,3.32037,3016.0,3015.2,1.06742732]
[1633067286160,4.9757,3015.6,3015.2,1.06742732]
[1633067286356,6.63431,3015.9,3015.2,1.06742732]
[1633067287158,6.63431,3015.9,3015.4,0.85735675]
[1633067287358,4.97567,3015.7,3015.4,0.85735675]
[1633067287857,4.97567,3015.7,3015.2,1.06742732]
[1633067287858,4.97567,3015.7,3015.3,3.3169634]
[1633067288460,4.97567,3015.7,3015.2,1.06742732]
[1633067288860,4.97567,3015.7,3015.3,0.91256927]
[1633067290460,4.97567,3015.7,3015.2,1.06742732]
[1633067291460,4.97567,3015.7,3015.2,1.90945986]
[1633067292061,4.97567,3015.7,3015.2,1.06742732]
[1633067292261,4.97567,3015.7,3015.0,38.4421343]
[1633067292464,4.97567,3015.7,3015.1,1.60377442]
[1633067292465,8.29343,3015.7,3015.1,1.60377442]
[1633067292664,3.31776,3015.7,3015.1,1.60377442]
[1633067292863,1.03970091,3015.6,3015.0,38.4421343]
[1633067293064,4.97647,3015.3,3015.0,38.4421343]
[1633067293466,1.31440511,3015.2,3015.0,38.4421343]
[1633067293665,0.2,3015.3,3015.0,38.4421343]
[1633067294064,1.03993468,3015.2,3015.0,38.4421343]
[1633067294864,4.9775,3015.1,3015.0,38.4421343]
[1633067295665,4.9775,3015.1,3015.0,39.51384271]
[1633067296665,4.9775,3015.1,3015.0,38.4421343]
[1633067299266,26.67870037,3015.1,3015.0,38.4421343]
[1633067299467,25.54172241,3015.1,3015.0,38.4421343]
[1633067299667,6.02172241,3015.1,3015.0,38.4421343]
[1633067300868,6.01741641,3015.1,3015.0,38.4421343]
[1633067301069,6.01728627,3015.1,3015.0,38.4421343]
[1633067302471,6.01728627,3015.1,3015.0,38.2921343]
[1633067303072,7.31128627,3015.1,3015.0,38.2921343]
[1633067303271,7.31558027,3015.1,3015.0,38.2921343]
[1633067303472,8.31558027,3015.1,3015.0,38.2921343]
[1633067304872,7.31558027,3015.1,3015.0,38.2921343]
[1633067306275,6.01728627,3015.1,3015.0,38.2921343]
[1633067306673,4.9775,3015.1,3015.0,38.2921343]
[1633067307273,6.01766411,3015.1,3015.0,38.2921343]
[1633067308073,4.9775,3015.1,3015.0,38.2921343]
[1633067308474,6.01781191,3015.1,3015.0,38.2921343]
[1633067315686,6.01781191,3015.1,3015.0,39.26160485]
[1633067316285,6.01781191,3015.1,3015.0,38.2921343]
[1633067319087,6.01781191,3015.1,3015.0,38.11483071]
[1633067319088,30.770587,3015.1,3015.0,38.11483071]
[1633067319287,32.35675233,3015.1,3015.0,38.11483071]
[1633067319686,31.4010791,3015.1,3015.0,38.11483071]
[1633067319886,32.35654969,3015.1,3015.0,38.11483071]
[1633067320087,32.27504269,3015.1,3015.0,38.11483071]
[1633067320287,11.53839369,3015.1,3015.0,38.11483071]
[1633067320486,7.95501191,3015.1,3015.0,38.11483071]
[1633067320686,6.21781191,3015.1,3015.0,38.11483071]
[1633067321489,6.79096346,3015.1,3015.0,38.11483071]
[1633067321690,9.41827448,3015.1,3015.0,38.11483071]
[1633067321888,7.84512293,3015.1,3015.0,38.11483071]
[1633067322089,8.41821391,3015.1,3015.0,38.11483071]
[1633067322889,7.84512293,3015.1,3015.0,38.11483071]
[1633067323289,27.36512293,3015.1,3015.0,38.11483071]
[1633067323688,27.93805401,3015.1,3015.0,38.11483071]
[1633067324288,8.41805401,3015.1,3015.0,38.11483071]
[1633067324488,6.79074299,3015.1,3015.0,38.11483071]
[1633067324688,26.31074299,3015.1,3015.0,38.11483071]
[1633067324889,27.93721277,3015.1,3015.0,38.11483071]
[1633067325090,27.36428169,3015.1,3015.0,38.11483071]
[1633067326290,7.84428169,3015.1,3015.0,38.11483071]
[1633067326493,6.21781191,3015.1,3015.0,38.11483071]
[1633067327492,7.84385838,3015.1,3015.0,38.11483071]
[1633067327690,27.36385838,3015.1,3015.0,38.11483071]
[1633067327892,27.93653385,3015.1,3015.0,38.11483071]
[1633067328691,8.41653385,3015.1,3015.0,38.11483071]
[1633067328892,6.21781191,3015.1,3015.0,38.11483071]
[1633067329293,6.01781191,3015.1,3015.0,38.11483071]
[1633067329494,0.57254104,3015.5,3015.0,38.11483071]
[1633067329692,1.03878351,3015.4,3015.0,38.11483071]
[1633067329892,1.03877389,3015.3,3015.2,1.14631588]
[1633067330093,0.57250266,3015.6,3015.0,38.11483071]
[1633067330293,4.97658,3015.3,3015.0,38.11483071]
[1633067330494,1.03876555,3015.2,3015.0,38.11483071]
[1633067330693,8.83334858,3015.6,3015.0,38.11483071]
[1633067330892,1.03875978,3015.5,3015.0,38.11483071]
[1633067331300,1.03875978,3015.5,3015.1,0.93982111]
[1633067331494,4.97664,3015.3,3015.1,0.93982111]
[1633067331698,1.03875304,3015.2,3015.1,0.93982111]
[1633067331899,4.97664,3015.3,3015.1,0.93982111]
[1633067332698,4.97664,3015.3,3015.0,38.11483071]
[1633067333098,1.03878725,3015.2,3015.0,38.11483071]
[1633067333299,6.01550725,3015.2,3015.0,38.11483071]
[1633067333498,4.97672,3015.2,3015.0,38.11483071]
[1633067334305,1.03881677,3015.1,3015.0,38.11483071]
[1633067334504,6.01592677,3015.1,3015.0,38.11483071]
[1633067334700,7.58964303,3015.6,3015.0,38.12286271]
[1633067334701,8.83338172,3015.6,3015.0,38.12286271]
[1633067334902,1.03874517,3015.5,3015.0,38.12286271]
[1633067336103,6.01529517,3015.5,3015.0,38.12286271]
[1633067336360,1.03872681,3015.4,3015.0,38.12286271]
[1633067336558,6.63544,3015.6,3015.0,38.12286271]
[1633067336758,1.03876515,3015.5,3015.0,38.12286271]
[1633067337360,1.03876515,3015.5,3015.4,0.80793237]
[1633067338358,6.01539515,3015.5,3015.4,0.80793237]
[1633067338560,6.01539515,3015.5,3015.0,38.12286271]
[1633067338766,1.62541412,3015.7,3015.4,0.88958368]
[1633067338961,0.57249815,3015.9,3015.4,1.401349]
[1633067339162,0.57547636,3016.0,3015.4,1.401349]
[1633067339368,0.003,3016.0,3015.4,1.401349]
[1633067339568,4.9786,3016.0,3015.4,7.36351753]
[1633067339768,5.55103916,3016.0,3015.4,7.36351753]
[1633067339966,4.9786,3016.0,3015.4,2.38811753]
[1633067340165,4.9786,3016.0,3015.4,0.99861753]
[1633067340967,0.003,3016.0,3015.4,0.99861753]
[1633067341165,0.003,3016.0,3015.4,2.01214149]
[1633067341566,0.003,3016.0,3015.4,0.99861753]
[1633067341964,4.97862,3016.0,3015.4,0.99861753]
[1633067342169,5.76892006,3016.0,3015.4,4.30366343]
[1633067342466,0.57245883,3015.9,3015.1,1.207991]
[1633067342665,1.36574405,3016.0,3015.1,2.1033356]
[1633067342867,0.57246904,3015.9,3015.1,1.207991]
[1633067343265,6.6349,3015.9,3015.1,1.207991]
[1633067343467,6.6349,3015.9,3015.2,0.95377724]
[1633067344066,7.20739665,3015.9,3015.2,0.95377724]
[1633067344668,4.97611,3015.6,3015.2,0.95377724]
[1633067347070,7.20739665,3015.9,3015.2,0.95377724]
[1633067348071,7.20739665,3015.9,3015.4,1.04237693]
[1633067348270,7.20739665,3015.9,3015.3,1.2423]
[1633067349673,4.97588,3015.8,3015.3,1.2423]
[1633067349875,4.97588,3015.8,3015.2,0.95377724]
[1633067350473,5.77228042,3015.8,3015.2,0.95377724]
[1633067350675,5.77228042,3015.8,3015.2,5.92945724]
[1633067350875,4.97588,3015.8,3015.2,5.92945724]
[1633067351877,5.73680738,3015.8,3015.2,0.95377724]
[1633067352279,5.54889782,3015.8,3015.2,0.95377724]
[1633067352479,4.97588,3015.8,3015.2,0.95377724]
[1633067353678,1.03982189,3015.7,3015.2,5.92947724]
[1633067354278,1.03982189,3015.7,3015.2,0.95377724]
[1633067354480,1.03994419,3015.6,3015.2,0.95377724]
[1633067354683,1.03998018,3015.5,3015.2,0.95377724]
[1633067354882,1.03998693,3015.4,3015.2,0.95377724]
[1633067355085,0.57318596,3015.8,3015.2,0.95377724]
[1633067355283,1.6131641,3015.8,3015.3,1.00401415]
[1633067355486,1.0399171,3015.7,3015.2,0.95377724]
[1633067355682,6.0156898,3015.6,3015.2,0.95377724]
[1633067355882,4.97576,3015.6,3015.2,0.95377724]
[1633067356083,7.20761129,3015.9,3015.2,0.95377724]
[1633067356285,1.03993413,3015.8,3015.2,0.95377724]
[1633067357086,4.976,3015.5,3015.2,0.95377724]
[1633067357285,4.976,3015.5,3015.1,1.207991]
[1633067357286,4.976,3015.5,3015.1,0.207991]
[1633067357690,4.976,3015.5,3015.1,0.007991]
[1633067357885,4.976,3015.5,3015.0,38.11483071]
[1633067357886,1.04012513,3015.4,3015.0,38.11483071]
[1633067358286,1.04016072,3015.3,3015.0,38.11483071]
[1633067358486,1.04018147,3015.2,3015.0,38.11483071]
[1633067358787,0.66543967,3015.5,3015.0,38.11483071]
[1633067358987,4.97652,3015.2,3015.0,38.11483071]
[1633067361389,1.04063978,3015.1,3015.0,38.11483071]
[1633067361790,1.04071889,3015.1,3015.0,38.11483071]
[1633067361991,6.63579,3015.3,3015.0,38.11483071]
[1633067361992,1.04073282,3015.2,3015.0,38.11483071]
[1633067362590,4.97716,3015.1,3015.0,38.11483071]
[1633067362794,6.01801649,3015.1,3015.0,38.11483071]
[1633067370797,6.01801649,3015.1,3015.0,39.05570094]
[1633067371199,6.01801649,3015.1,3015.0,38.11483071]
[1633067373001,8.22191591,3015.1,3015.0,38.11483071]
[1633067373400,8.22192736,3015.1,3015.0,38.11483071]
[1633067373800,7.64785275,3015.1,3015.0,38.11483071]
[1633067374000,27.16785275,3015.1,3015.0,38.11483071]
[1633067376802,27.74185542,3015.1,3015.0,38.11483071]
[1633067377203,27.16785275,3015.1,3015.0,38.11483071]
[1633067377805,7.64785275,3015.1,3015.0,38.11483071]
[1633067378006,1.04085649,3015.1,3015.0,38.11483071]
[1633067378267,0.57394043,3015.3,3015.0,38.11483071]
[1633067378805,2.67083087,3015.4,3015.0,38.11483071]
[1633067378806,25.07076547,3015.2,3015.0,38.11483071]
[1633067379005,3.24500681,3015.1,3015.0,38.11483071]
[1633067379206,1.61541488,3015.1,3015.0,38.11483071]
[1633067379409,21.13541488,3015.1,3015.0,38.11483071]
[1633067379610,22.19106929,3015.1,3015.0,38.11483071]
[1633067380006,22.76502972,3015.1,3015.0,38.11483071]
[1633067380407,27.74309972,3015.1,3015.0,38.11483071]
[1633067381270,27.16911307,3015.1,3015.0,38.11483071]
[1633067382411,27.74307777,3015.1,3015.0,38.11483071]
[1633067382808,27.16911307,3015.1,3015.0,38.11483071]
[1633067383611,27.7430597,3015.1,3015.0,38.11483071]
[1633067383809,2.67104307,3015.1,3015.0,68.11483071]
[1633067384012,1.04143255,3015.1,3015.0,68.11483071]
[1633067385217,22.81368475,3015.1,3015.0,68.11483071]
[1633067385417,25.01704167,3015.1,3015.0,68.11483071]
[1633067385610,22.19085593,3015.1,3015.0,68.11483071]
[1633067385810,22.76481743,3015.1,3015.0,68.11483071]
[1633067386010,23.6848986,3015.1,3015.0,68.11483071]
[1633067386218,29.62242044,3015.1,3015.0,68.11483071]
[1633067387819,30.00506284,3015.1,3015.0,68.11483071]
[1633067388421,28.6658726,3015.1,3015.0,68.11483071]
[1633067389117,43.6658726,3015.1,3015.0,68.11483071]
[1633067389319,28.6658726,3015.1,3015.0,68.11483071]
[1633067389720,29.63141932,3015.1,3015.0,68.11483071]
[1633067389921,29.63141071,3015.1,3015.0,68.11483071]
[1633067390121,27.38106555,3015.1,3015.0,68.11483071]
[1633067390521,28.33741018,3015.1,3015.0,68.11483071]
[1633067391120,29.63141018,3015.1,3015.0,68.11483071]
[1633067391325,55.94170205,3015.1,3015.0,68.11483071]
[1633067391522,56.81290344,3015.1,3015.0,61.47621071]
[1633067391723,41.81290344,3015.1,3015.0,61.47621071]
[1633067391921,39.60283102,3015.1,3015.0,61.47621071]
[1633067392323,54.60283102,3015.1,3015.0,61.47621071]
[1633067392525,56.81262654,3015.1,3015.0,61.47621071]
[1633067392724,56.81262654,3015.1,3015.0,58.94547591]
[1633067392725,55.54392127,3015.1,3015.0,58.94547591]
[1633067392924,41.83792127,3015.1,3015.0,58.94547591]
[1633067393124,39.62812575,3015.1,3015.0,58.94547591]
[1633067393525,39.62812575,3015.1,3015.0,52.30683591]
[1633067393926,54.62812575,3015.1,3015.0,52.30683591]
[1633067394124,56.83742409,3015.1,3015.0,52.30683591]
[1633067394324,56.83742409,3015.1,3015.0,45.66812591]
[1633067395125,58.17579341,3015.1,3015.0,45.66812591]
[1633067395327,43.17579404,3015.1,3015.0,45.66812591]
[1633067395526,55.9664957,3015.1,3015.0,45.66812591]
[1633067395725,58.17568221,3015.1,3015.0,45.66812591]
[1633067396127,43.17568221,3015.1,3015.0,45.66812591]
[1633067396385,40.9664957,3015.1,3015.0,45.66812591]
[1633067396585,40.9664957,3015.1,3015.0,39.02931591]
[1633067396586,39.62812575,3015.1,3015.0,39.02931591]
[1633067396784,54.97449138,3015.1,3015.0,39.02931591]
[1633067396986,41.83715054,3015.1,3015.0,39.02931591]
[1633067397185,54.62812575,3015.1,3015.0,32.39024591]
[1633067397386,56.83716621,3015.1,3015.0,32.39024591]
[1633067397785,56.83716621,3015.1,3015.0,25.75123591]
[1633067398985,41.83716621,3015.1,3015.0,25.75123591]
[1633067399187,39.62812575,3015.1,3015.0,25.75123591]
[1633067399587,53.33412575,3015.1,3015.0,25.75123591]
[1633067399788,55.54240893,3015.1,3015.0,25.75123591]
[1633067399990,56.83640893,3015.1,3015.0,25.75123591]
[1633067400390,55.54240893,3015.1,3015.0,25.75123591]
[1633067400987,40.54240893,3015.1,3015.0,25.75123591]
[1633067401188,53.33412575,3015.1,3015.0,25.75123591]
[1633067401589,55.54248238,3015.1,3015.0,25.75123591]
[1633067402189,40.54248238,3015.1,3015.0,25.75123591]
[1633067402393,53.30883102,3015.1,3015.0,25.75123591]
[1633067402592,41.8545806,3015.1,3015.0,25.75123591]
[1633067402791,39.64650968,3015.1,3015.0,25.75123591]
[1633067402992,54.64650968,3015.1,3015.0,25.75123591]
[1633067403196,56.85455034,3015.1,3015.0,25.75123591]
[1633067404796,41.85455034,3015.1,3015.0,25.75123591]
[1633067404997,54.64650968,3015.1,3015.0,25.75123591]
[1633067405197,56.85431905,3015.1,3015.0,25.75123591]
[1633067405398,55.56664039,3015.1,3015.0,25.75123591]
[1633067406199,40.56664039,3015.1,3015.0,25.75123591]
[1633067406398,54.69612058,3015.1,3015.0,25.75123591]
[1633067406597,56.90355074,3015.1,3015.0,25.75123591]
[1633067407202,55.56626118,3015.1,3015.0,25.75123591]
[1633067408000,40.56626118,3015.1,3015.0,25.75123591]
[1633067408200,53.35883102,3015.1,3015.0,25.75123591]
[1633067408401,55.56598215,3015.1,3015.0,25.75123591]
[1633067408600,40.56598215,3015.1,3015.0,25.75123591]
[1633067408802,53.35883102,3015.1,3015.0,25.75123591]
[1633067409000,55.56591115,3015.1,3015.0,25.75123591]
[1633067409404,55.5567182,3015.1,3015.0,25.75123591]
[1633067410403,40.5567182,3015.1,3015.0,25.75123591]
[1633067410602,38.34963807,3015.1,3015.0,25.75123591]
[1633067410804,39.68638439,3015.1,3015.0,25.75123591]
[1633067411004,38.34963807,3015.1,3015.0,25.75123591]
[1633067411206,37.6381501,3015.1,3015.0,25.75123591]
[1633067411410,29.37256469,3015.1,3015.0,25.75123591]
[1633067411605,28.4178186,3015.1,3015.0,25.75123591]
[1633067412606,8.8978186,3015.1,3015.0,25.75123591]
[1633067412807,6.26835255,3015.1,3015.0,26.50108886]
[1633067413010,2.56594862,3015.5,3015.0,27.79508886]
[1633067413211,0.95761286,3015.5,3015.0,26.50108886]
[1633067413407,0.95763622,3015.5,3015.0,26.50108886]
[1633067413606,0.003,3015.5,3015.0,26.50108886]
[1633067413807,4.9795,3015.5,3015.0,26.50108886]
[1633067414007,4.9795,3015.5,3015.2,1.03118839]
[1633067414207,4.9795,3015.5,3015.0,26.50108886]
[1633067414607,4.9795,3015.5,3015.2,1.294]
[1633067414810,4.9795,3015.5,3015.0,26.50108886]
[1633067415007,0.003,3015.5,3015.0,26.50108886]
[1633067415807,0.003,3015.5,3015.2,1.294]
[1633067416009,0.003,3015.5,3015.1,0.8563]
[1633067416207,0.003,3015.5,3015.4,0.013534]
[1633067416408,0.003,3015.5,3015.4,1.837334]
[1633067416807,0.003,3015.5,3015.4,3.131334]
[1633067418611,0.003,3015.5,3015.4,3.130335]
[1633067419011,0.003,3015.5,3015.4,3.1178]
[1633067422420,16.13835076,3016.1,3015.4,3.1178]
[1633067422421,0.95460738,3016.2,3016.1,5.93129527]
[1633067422625,0.003,3016.5,3016.2,4.9731]
[1633067422823,0.003,3016.5,3016.3,3.10873979]
[1633067423024,0.003,3016.5,3016.4,1.0]
[1633067423224,0.88358261,3017.0,3016.4,1.0]
[1633067423427,0.88358261,3017.0,3016.5,3.7743771]
[1633067423620,0.88358261,3017.0,3016.7,6.29]
[1633067423821,0.88358261,3017.0,3016.8,0.2]
[1633067424022,0.88358261,3017.0,3016.8,2.9014]
[1633067424418,0.88358261,3017.0,3016.9,4.996]
[1633067424617,0.88358261,3017.0,3016.9,5.196]
[1633067424817,0.88358261,3017.0,3016.9,7.49]
[1633067425018,0.88358261,3017.0,3016.9,12.46245]
[1633067425423,0.88358261,3017.0,3016.9,12.47504]
[1633067427017,0.88358261,3017.0,3016.9,12.49913373]
[1633067427220,0.88358261,3017.0,3016.9,7.52668373]
[1633067427425,0.88358261,3017.0,3016.9,7.50259]
[1633067427619,0.88358261,3017.0,3016.9,7.49]
[1633067427823,0.88358261,3017.0,3016.9,6.49]
[1633067428219,0.88358261,3017.0,3016.9,5.196]
[1633067428419,0.88358261,3017.0,3016.9,0.2]
[1633067429019,0.88358261,3017.0,3016.9,1.494]
[1633067429218,0.88358261,3017.0,3016.9,0.2]
[1633067431018,0.88358261,3017.0,3016.9,1.494]
[1633067431219,0.88358261,3017.0,3016.9,0.2]
[1633067435221,6.63096,3017.7,3017.6,2.85214866]
[1633067435424,0.006,3018.1,3018.0,2.57185037]
[1633067435626,0.006,3018.1,3018.0,10.64871709]
[1633067435821,0.006,3018.1,3018.0,7.82212205]
[1633067436023,0.006,3018.1,3018.0,34.23020433]
[1633067436224,0.006,3018.1,3018.0,36.14174565]
[1633067436622,0.006,3018.1,3018.0,41.11149565]
[1633067437022,0.006,3018.1,3018.0,44.42466125]
[1633067437423,0.006,3018.1,3018.0,30.68187245]
[1633067437623,0.006,3018.1,3018.0,28.18626073]
[1633067437822,0.006,3018.1,3018.0,28.16106305]
[1633067438023,0.006,3018.1,3018.0,15.19131305]
[1633067439522,0.006,3018.1,3018.0,23.19131305]
[1633067441324,0.006,3018.1,3018.0,22.15127631]
[1633067441923,0.006,3018.1,3018.0,20.85727631]
[1633067442525,0.006,3018.1,3018.0,22.15127631]
[1633067442725,0.006,3018.1,3018.0,23.14955132]
[1633067443527,0.006,3018.1,3018.0,21.85555132]
[1633067444726,0.006,3018.1,3018.0,24.29475132]
[1633067444928,0.006,3018.2,3018.0,25.32946801]
[1633067445128,0.006,3018.2,3018.1,5.56121544]
[1633067445329,0.006,3019.3,3018.1,6.78533585]
[1633067445530,0.006,3019.3,3018.8,5.87267982]
[1633067445728,0.006,3019.3,3018.8,5.211344]
[1633067445928,0.006,3019.3,3018.8,0.2]
[1633067448794,0.006,3019.3,3018.8,1.2]
[1633067448993,0.86771889,3018.9,3018.8,0.2]
[1633067450592,0.006,3018.9,3018.8,0.2]
[1633067450794,0.006,3018.9,3018.8,1.2]
[1633067454201,0.006,3019.2,3018.8,1.2]
[1633067455400,0.006,3019.2,3018.9,4.96893]
[1633067455599,0.006,3019.2,3018.9,5.16893]
[1633067455799,0.006,3019.2,3018.9,6.16893]
[1633067460305,0.006,3019.2,3018.9,1.2]
[1633067460506,0.006,3019.2,3018.9,0.2]
[1633067461305,0.99405298,3019.1,3018.9,0.2]
[1633067464511,0.006,3019.1,3018.9,0.2]
[1633067465510,1.006159,3019.1,3018.9,0.2]
[1633067467515,4.97951,3019.0,3018.9,0.2]
[1633067472119,6.277681,3019.0,3018.3,0.2]
[1633067472325,6.277681,3019.0,3018.1,10.908691]
[1633067472326,4.983681,3019.0,3018.1,10.908691]
[1633067472519,4.983681,3019.0,3018.1,10.9007]
[1633067473119,1.9667236,3018.6,3018.1,10.9007]